bitfinex/quotes_ETHUSD_20250214
["timestamp","ask_amount","ask_price","bid_price","bid_amount"]
[1739559384861,3.62191,2761.0,2760.5,3.0]
[1739559385454,3.62191,2761.0,2760.5,6.62251]
[1739559385941,9.29268,2761.2,2760.6,3.62227]
[1739559386141,9.29268,2761.2,2760.6,3.62237]
[1739559386371,9.29267,2761.2,2760.5,3.0]
[1739559386567,3.62195,2761.0,2760.5,3.0]
[1739559387841,3.62203,2760.9,2760.5,3.0]
[1739559388075,3.62192,2761.0,2760.5,7.729614]
[1739559388247,5.671,2761.2,2760.5,3.0]
[1739559388449,3.62196,2761.0,2760.5,3.0]
[1739559389038,3.62174,2761.1,2760.5,3.0]
[1739559389351,3.62174,2761.1,2760.4,0.8263]
[1739559389772,3.62207,2760.9,2760.4,3.8263]
[1739559389956,3.62207,2760.9,2760.4,7.44894]
[1739559390157,3.62187,2761.0,2760.6,3.0]
[1739559390339,3.62206,2760.9,2760.4,3.8263]
[1739559390536,9.29268,2761.2,2760.6,3.0]
[1739559390731,9.29268,2761.2,2760.6,6.62232]
[1739559390938,3.62209,2760.9,2760.3,3.62275]
[1739559391471,3.6222,2760.8,2760.4,3.0]
[1739559393386,5.671,2761.2,2760.1,3.62297]
[1739559393593,0.55,2760.8,2760.2,3.0]
[1739559393789,3.62276,2760.4,2760.2,3.0]
[1739559393968,3.62279,2760.3,2759.8,7.45154]
[1739559394270,3.62279,2760.3,2759.8,4.45154]
[1739559395050,0.763,2760.5,2760.0,6.62317]
[1739559395253,3.62253,2760.5,2760.0,6.62317]
[1739559396174,9.01239,2760.7,2760.0,7.730627]
[1739559396372,3.6224,2760.6,2760.1,3.62305]
[1739559397977,9.01239,2760.7,2760.1,3.62305]
[1739559398295,9.01239,2760.7,2760.2,3.6229]
[1739559398500,9.01239,2760.7,2760.3,3.62279]
[1739559398647,5.39,2760.7,2760.4,4.38058]
[1739559399075,9.01209,2760.9,2760.4,4.38058]
[1739559399564,5.39,2760.9,2760.6,3.62233]
[1739559399766,5.39,2760.9,2760.4,1.34326362]
[1739559399971,5.39,2760.9,2760.6,3.62228]
[1739559400275,5.39,2760.9,2760.6,3.0]
[1739559400480,9.01202,2760.9,2760.6,3.0]
[1739559401482,5.39,2760.9,2760.6,3.0]
[1739559403151,5.39,2760.9,2760.6,6.62237]
[1739559403955,5.39,2760.9,2760.6,3.0]
[1739559404577,5.39,2760.9,2760.6,6.62228]
[1739559404763,5.39,2760.9,2760.8,3.62213]
[1739559404981,3.62148,2761.3,2760.8,3.62213]
[1739559405376,3.62148,2761.3,2761.2,35.0]
[1739559408095,9.01148,2761.3,2761.2,35.0]
[1739559408477,5.39,2761.3,2761.2,35.0]
[1739559408810,3.62124,2761.5,2761.2,35.0]
[1739559409858,3.6211,2761.6,2761.2,35.0]
[1739559410116,3.62079,2761.9,2761.4,0.758]
[1739559410279,3.6207,2761.9,2761.4,0.758]
[1739559410478,3.62106,2761.7,2761.4,0.758]
[1739559410778,3.62106,2761.7,2761.6,35.0]
[1739559410976,4.43616,2761.7,2761.6,35.0]
[1739559413987,9.82616,2761.7,2761.6,35.0]
[1739559414184,3.62122,2761.5,2761.1,3.0]
[1739559414599,3.62122,2761.5,2761.4,35.0]
[1739559418512,3.62122,2761.5,2760.9,0.758]
[1739559418720,3.62186,2761.1,2760.9,0.758]
[1739559419103,3.62186,2761.1,2761.0,38.0]
[1739559419489,3.62144,2761.4,2761.0,38.0]
[1739559419883,3.62162,2761.2,2761.0,38.0]
[1739559420619,3.62169,2761.2,2761.0,38.0]
[1739559420946,3.62169,2761.2,2761.0,35.0]
[1739559420947,10.37134,2761.1,2761.0,35.0]
[1739559423302,11.1078917,2761.1,2761.0,35.0]
[1739559426599,3.62266,2760.4,2760.3,0.7505]
[1739559427038,3.62266,2760.4,2760.3,35.7505]
[1739559427939,3.62254,2760.5,2760.3,35.7505]
[1739559428519,3.62253,2760.5,2760.3,35.7505]
[1739559429217,3.62266,2760.4,2760.3,35.7505]
[1739559429451,3.62266,2760.4,2760.3,35.0]
[1739559435694,4.44786,2760.4,2760.3,35.0]
[1739559436953,9.83786,2760.4,2760.3,35.0]
[1739559437223,10.38786,2760.4,2760.3,35.0]
[1739559440065,3.62358,2759.7,2759.6,2e-07]
[1739559440200,6.66244739,2759.7,2759.6,2e-07]
[1739559440397,7.21244739,2759.7,2759.6,2e-07]
[1739559440630,8.03764739,2759.7,2759.6,2e-07]
[1739559440843,11.03764739,2759.7,2759.6,2e-07]
[1739559441573,3.55,2759.6,2758.5,0.8164]
[1739559441873,3.62502,2758.6,2758.1,0.7768]
[1739559442166,3.62484,2758.8,2758.1,4.6531733]
[1739559442310,3.62504,2758.6,2758.1,3.7768]
[1739559442509,3.62504,2758.6,2758.5,35.0]
[1739559443209,3.6249,2758.7,2758.5,35.0]
[1739559444145,3.62466,2758.9,2758.6,0.7768]
[1739559444334,3.62466,2758.9,2758.7,3.57768]
[1739559444537,3.62466,2758.9,2758.6,0.7768]
[1739559445036,3.62466,2758.9,2758.8,35.0]
[1739559445720,7.24892,2759.1,2758.8,35.0]
[1739559445907,3.62443,2759.1,2758.6,0.7768]
[1739559446114,3.62432,2759.2,2758.7,3.62486]
[1739559446309,7.24788,2759.5,2759.1,35.7768]
[1739559446514,3.62392,2759.5,2759.1,35.7768]
[1739559446727,3.62392,2759.5,2759.1,0.7768]
[1739559446946,7.24787,2759.5,2759.1,0.7768]
[1739559447149,3.62392,2759.5,2759.1,0.7768]
[1739559447351,3.62392,2759.5,2759.4,35.0]
[1739559447528,5.39,2759.6,2759.4,35.0]
[1739559447849,4.39444,2760.1,2759.2,0.7768]
[1739559448049,3.62314,2760.1,2759.5,3.62374]
[1739559448248,5.39,2760.2,2759.8,35.7768]
[1739559448449,9.01295,2760.2,2759.8,39.40156439]
[1739559449058,9.01294,2760.2,2759.8,39.40156439]
[1739559449927,6.66205739,2760.0,2759.8,35.0]
[1739559450132,10.68261,2759.9,2759.8,35.0]
[1739559451550,5.738,2759.9,2759.8,35.0]
[1739559452055,5.738,2759.9,2759.8,38.62345]
[1739559452377,5.39,2760.2,2759.8,35.0]
[1739559452739,9.01282,2760.3,2759.8,35.0]
[1739559452922,9.01282,2760.3,2759.8,38.62476439]
[1739559453126,3.623,2760.2,2759.8,38.62476439]
[1739559453535,3.623,2760.2,2759.8,35.0]
[1739559454051,5.39,2760.3,2759.8,38.62341]
[1739559454221,5.39,2760.3,2759.9,3.62331]
[1739559454621,5.39,2760.3,2759.8,38.62342]
[1739559454820,5.39,2760.3,2759.9,3.6233]
[1739559455055,5.39,2760.3,2759.9,7.24806439]
[1739559456035,9.0129,2760.3,2759.9,3.62476439]
[1739559456236,9.0129,2760.3,2759.8,35.0]
[1739559456554,3.62292,2760.2,2759.8,35.0]
[1739559457134,9.01282,2760.3,2759.8,35.0]
[1739559457557,9.01282,2760.3,2759.8,38.62343]
[1739559457761,5.39,2760.3,2759.8,38.62339]
[1739559457928,5.39,2760.3,2759.9,7.24799439]
[1739559458119,5.39,2760.3,2759.9,3.62476439]
[1739559458323,9.01282,2760.3,2759.8,3.62339]
[1739559458524,5.39,2760.3,2759.7,3.7768]
[1739559458724,5.39,2760.3,2760.0,35.0]
[1739559459057,3.62301,2760.2,2760.0,35.0]
[1739559459256,5.39,2760.3,2760.0,35.0]
[1739559459560,3.62294,2760.2,2760.0,35.0]
[1739559461729,4.17305,2760.1,2760.0,35.0]
[1739559461924,3.62305,2760.1,2760.0,35.0]
[1739559463205,4.17305,2760.1,2760.0,35.0]
[1739559463733,4.99715,2760.1,2760.0,35.0]
[1739559464036,5.27815,2760.1,2760.0,35.0]
[1739559464635,10.66815,2760.1,2760.0,35.0]
[1739559466177,0.8241,2759.3,2758.6,0.7543]
[1739559466332,3.62476,2758.8,2758.6,0.7543]
[1739559466530,3.625,2758.7,2758.3,0.7543]
[1739559466756,3.625,2758.7,2758.3,1.192289]
[1739559467002,3.62511,2758.6,2758.3,0.7543]
[1739559467166,3.62511,2758.6,2758.5,35.0]
[1739559469177,4.99921,2758.6,2757.2,0.7543]
[1739559469336,3.62616,2757.8,2757.2,0.7543]
[1739559469671,3.62635,2757.6,2757.2,1.192938]
[1739559469870,3.62614,2757.8,2757.1,0.005]
[1739559469871,3.62673,2757.4,2757.1,0.005]
[1739559470174,3.62673,2757.4,2757.3,35.0]
[1739559471151,5.00083,2757.4,2757.3,35.0]
[1739559471354,5.28183,2757.4,2757.3,35.0]
[1739559471574,3.62686,2757.2,2757.1,0.005]
[1739559471951,4.17686,2757.2,2757.1,0.005]
[1739559472274,7.98744667,2757.2,2757.1,0.005]
[1739559472642,7.98744667,2757.2,2757.1,35.005]
[1739559473759,8.73018413,2757.2,2757.1,35.005]
[1739559473960,4.91959746,2757.2,2757.1,35.005]
[1739559475947,8.35855,2757.4,2757.1,35.005]
[1739559475948,3.62672,2757.4,2757.1,35.005]
[1739559476279,3.6264,2757.6,2757.1,0.43661259]
[1739559476776,9.01629,2757.7,2757.5,35.0]
[1739559476990,5.39,2757.7,2757.1,0.43661259]
[1739559477184,3.62634,2757.6,2757.1,0.43661259]
[1739559477479,5.39,2757.7,2757.5,35.0]
[1739559477876,3.6258,2758.1,2757.5,6.53765002]
[1739559478075,3.62547,2758.3,2757.5,3.62645]
[1739559478285,3.62547,2758.3,2757.5,3.62639]
[1739559478490,3.62555,2758.2,2758.1,35.0]
[1739559482091,3.62522,2758.5,2758.1,35.0]
[1739559482400,3.62496,2758.7,2758.1,35.0]
[1739559482601,7.24995,2758.7,2758.2,3.57828]
[1739559482903,3.62516,2758.5,2758.1,3.0]
[1739559483069,3.62516,2758.5,2758.4,35.0]
[1739559483268,3.62496,2758.7,2758.4,35.0]
[1739559483468,3.62496,2758.7,2758.1,6.62567]
[1739559483870,3.62496,2758.7,2758.6,35.0]
[1739559484901,9.0147,2758.9,2758.6,35.0]
[1739559485101,3.62456,2759.0,2758.6,37.95589395]
[1739559485300,7.24915,2759.0,2758.6,37.95589395]
[1739559485601,3.62489,2758.7,2758.6,35.0]
[1739559485805,3.62477,2758.8,2758.6,35.0]
[1739559487309,3.62489,2758.7,2758.6,35.0]
[1739559488812,4.17489,2758.7,2758.6,35.0]
[1739559489181,4.17489,2758.7,2758.1,0.55]
[1739559489182,3.62555,2758.2,2758.1,0.55]
[1739559489803,3.62531,2758.4,2758.1,0.55]
[1739559489978,3.62555,2758.2,2758.1,0.55]
[1739559490178,3.62531,2758.4,2758.1,0.55]
[1739559490478,4.17508,2758.6,2758.1,0.55]
[1739559490479,3.6252,2758.5,2758.1,0.55]
[1739559490810,3.62555,2758.2,2758.1,0.55]
[1739559490977,3.62531,2758.4,2758.1,0.55]
[1739559491324,3.62509,2758.6,2758.1,4.593263]
[1739559491609,3.62504,2758.6,2758.2,0.7553]
[1739559491816,3.6252,2758.5,2758.2,0.7553]
[1739559492002,3.62542,2758.3,2758.2,0.7553]
[1739559492384,3.62542,2758.3,2758.1,0.55]
[1739559492605,3.62555,2758.2,2758.1,0.55]
[1739559492985,4.17555,2758.2,2758.1,0.55]
[1739559494586,4.95125,2758.2,2758.1,0.55]
[1739559494794,10.34125,2758.2,2758.1,0.55]
[1739559495394,13.34125,2758.2,2758.1,1e-05]
[1739559499593,13.44125,2758.2,2758.1,1e-05]
[1739559500940,13.34125,2758.2,2758.1,1e-05]
[1739559501605,3.62722,2757.0,2756.6,0.7028125]
[1739559501805,3.62722,2757.0,2756.7,0.37028125]
[1739559502019,3.62691,2757.2,2756.7,0.37028125]
[1739559502221,3.62691,2757.2,2756.7,3.99780125]
[1739559502417,4.17668,2757.4,2756.8,7.25467]
[1739559502641,7.80338,2757.4,2756.9,0.76612224]
[1739559502924,7.25337,2757.4,2756.9,0.76612224]
[1739559503221,3.62676,2757.3,2756.9,0.76612224]
[1739559504298,3.62705,2757.1,2756.6,3.62761]
[1739559504488,1.3347,2757.5,2756.5,4.40778]
[1739559504688,3.62703,2757.1,2756.6,3.62762]
[1739559504926,3.62688,2757.2,2756.7,3.62749]
[1739559505097,3.62688,2757.2,2756.8,0.725511]
[1739559505299,3.62675,2757.3,2756.8,0.725511]
[1739559505513,3.62693,2757.2,2756.8,0.725511]
[1739559506034,3.62693,2757.2,2756.9,0.78]
[1739559506699,1.29061717,2757.5,2756.9,0.78]
[1739559506906,3.62706,2757.1,2756.9,0.78]
[1739559507291,3.62713,2757.0,2756.9,0.78]
[1739559507892,3.62713,2757.0,2756.4,3.78]
[1739559508087,3.6274,2756.8,2756.4,1.883609]
[1739559508292,3.62713,2757.0,2756.4,0.78]
[1739559508528,3.62774,2756.6,2756.4,0.78]
[1739559509023,3.62778,2756.5,2756.4,0.78]
[1739559509532,3.62787,2756.5,2756.1,0.78]
[1739559509820,3.62763,2756.7,2756.1,4.40822]
[1739559510028,3.62768,2756.6,2756.2,4.11484274]
[1739559510226,3.62766,2756.6,2756.2,4.11484274]
[1739559511026,3.62759,2756.7,2756.2,4.74292274]
[1739559511194,3.62768,2756.6,2756.2,1.11484274]
[1739559512399,3.62779,2756.5,2756.2,1.11484274]
[1739559512612,3.62768,2756.6,2756.1,0.78]
[1739559512812,3.62748,2756.8,2756.2,3.62818]
[1739559512813,3.62755,2756.7,2756.2,3.62818]
[1739559513011,3.62748,2756.8,2756.3,0.78]
[1739559513412,3.62752,2756.7,2756.3,0.78]
[1739559513598,3.6274,2756.8,2756.3,4.848858]
[1739559514027,3.62753,2756.7,2756.3,1.220818]
[1739559514534,3.62739,2756.8,2756.3,0.78]
[1739559514711,3.62739,2756.8,2756.3,4.40804]
[1739559514903,3.62735,2756.9,2756.3,0.78]
[1739559515102,3.62759,2756.7,2756.3,0.78]
[1739559515333,3.62759,2756.7,2756.6,35.0]
[1739559516551,3.6274,2756.8,2756.6,35.0]
[1739559516732,3.62749,2756.8,2756.3,4.40798]
[1739559517060,3.62727,2756.9,2756.3,5.211597]
[1739559517252,3.6275,2756.8,2756.7,35.0]
[1739559518019,3.62729,2756.9,2756.7,35.0]
[1739559518430,7.25466,2756.9,2756.7,35.0]
[1739559518655,3.62739,2756.8,2756.7,35.0]
[1739559520925,3.62724,2757.0,2756.7,35.0]
[1739559521160,3.62739,2756.8,2756.7,35.0]
[1739559521342,7.25447,2757.0,2756.7,35.0]
[1739559521548,3.62722,2757.0,2756.7,35.0]
[1739559521854,3.62722,2757.0,2756.8,0.7955]
[1739559522041,3.62697,2757.2,2756.8,0.7955]
[1739559522250,3.62719,2757.0,2756.8,0.7955]
[1739559522637,3.62719,2757.0,2756.9,35.0]
[1739559522834,3.62709,2757.1,2756.9,35.0]
[1739559523525,3.62713,2757.0,2756.9,35.0]
[1739559524373,3.627,2757.1,2756.9,35.0]
[1739559524555,3.62713,2757.0,2756.9,35.0]
[1739559527660,3.627,2757.1,2756.9,35.0]
[1739559527861,3.62681,2757.3,2756.8,4.42281]
[1739559528074,3.62692,2757.2,2756.8,4.42281]
[1739559528285,3.62657,2757.5,2756.9,3.62717]
[1739559528572,3.62681,2757.3,2756.8,1.237781]
[1739559528872,3.62681,2757.3,2757.0,35.0]
[1739559529037,3.62696,2757.2,2757.0,35.0]
[1739559530431,0.55,2757.5,2757.0,35.0]
[1739559530632,3.62699,2757.1,2757.0,35.0]
[1739559530867,3.62675,2757.3,2757.0,35.0]
[1739559532165,3.62688,2757.2,2757.0,35.0]
[1739559532565,3.62699,2757.1,2757.0,35.0]
[1739559534974,3.62688,2757.2,2757.0,35.0]
[1739559536576,3.62699,2757.1,2757.0,35.0]
[1739559537281,4.41009,2757.1,2757.0,35.0]
[1739559537639,4.96009,2757.1,2757.0,35.0]
[1739559538142,3.62755,2756.7,2756.1,0.811]
[1739559538370,3.62765,2756.6,2756.1,0.811]
[1739559538683,3.62778,2756.5,2756.3,35.0]
[1739559540656,3.62755,2756.7,2756.3,35.0]
[1739559540885,3.62792,2756.4,2756.3,35.0]
[1739559541051,3.6277,2756.6,2756.3,35.0]
[1739559541249,4.41102,2756.4,2756.3,35.0]
[1739559541782,3.62728,2756.9,2756.4,0.811]
[1739559541985,3.62704,2757.1,2756.6,3.62763]
[1739559542164,3.6272,2757.0,2756.4,4.43881]
[1739559542353,3.62727,2756.9,2756.4,4.43881]
[1739559542553,3.62727,2756.9,2756.5,0.443881]
[1739559542773,3.6272,2757.0,2756.5,0.443881]
[1739559542972,7.25442,2757.0,2756.9,35.0]
[1739559543184,3.6272,2757.0,2756.9,35.0]
[1739559543383,3.62705,2757.1,2756.9,35.0]
[1739559543751,3.62713,2757.0,2756.9,35.0]
[1739559543951,4.96023,2757.0,2756.9,35.0]
[1739559546868,3.62739,2756.8,2756.1,0.811]
[1739559547104,3.62818,2756.2,2756.1,0.811]
[1739559547368,3.62818,2756.2,2756.1,38.0]
[1739559547769,3.62818,2756.2,2756.1,35.0]
[1739559548091,4.17818,2756.2,2756.1,35.0]
[1739559549382,3.62818,2756.2,2756.1,35.0]
[1739559549990,4.98008,2756.2,2756.1,35.0]
[1739559551062,3.62818,2756.2,2756.1,35.0]
[1739559553408,7.25571,2756.5,2756.1,35.0]
[1739559553610,0.8019,2756.7,2756.1,35.0]
[1739559553829,0.55,2756.6,2756.1,35.0]
[1739559554042,3.62778,2756.5,2756.1,35.0]
[1739559554177,3.62816,2756.3,2756.1,35.0]
[1739559554375,3.62788,2756.5,2756.1,35.0]
[1739559554609,3.62815,2756.3,2756.1,35.0]
[1739559554797,3.62818,2756.2,2756.1,35.0]
[1739559554981,3.62813,2756.3,2756.1,35.0]
[1739559555190,7.25628,2756.3,2756.1,35.0]
[1739559555390,3.62818,2756.2,2756.1,35.0]
[1739559556328,3.62813,2756.3,2756.1,35.0]
[1739559556634,3.62818,2756.2,2756.1,35.0]
[1739559556929,3.62813,2756.3,2756.1,35.0]
[1739559557500,3.62818,2756.2,2756.1,35.0]
[1739559559079,4.98008,2756.2,2756.1,35.0]
[1739559560213,4.43008,2756.2,2756.1,35.0]
[1739559560710,3.62818,2756.2,2756.1,35.0]
[1739559561086,3.62814,2756.3,2756.1,35.0]
[1739559561292,3.62818,2756.2,2756.1,35.0]
[1739559561504,4.17818,2756.2,2756.1,35.0]
[1739559562675,4.95338,2756.2,2756.1,35.0]
[1739559564516,3.62831,2756.1,2756.0,0.11185736]
[1739559564682,3.90931,2756.1,2756.0,0.11185736]
[1739559565712,3.90931,2756.1,2755.7,0.005]
[1739559565713,3.62871,2755.8,2755.7,0.005]
[1739559565888,7.45108308,2755.8,2755.7,0.005]
[1739559568518,8.18960667,2755.8,2755.7,0.005]
[1739559569319,8.18960667,2755.8,2755.7,35.005]
[1739559569495,5.14243359,2755.8,2755.7,35.005]
[1739559569700,4.91723359,2755.8,2755.7,35.005]
[1739559571004,4.17871,2755.8,2755.7,35.005]
[1739559571719,3.62871,2755.8,2755.7,35.005]
[1739559576822,4.17871,2755.8,2755.7,35.005]
[1739559577028,5.00751,2755.8,2755.7,35.005]
[1739559577717,4.17871,2755.8,2755.7,35.005]
[1739559581030,3.62871,2755.8,2755.7,35.765]
[1739559581212,3.62871,2755.8,2755.7,37.82636298]
[1739559581415,3.62871,2755.8,2755.7,35.765]
[1739559582297,3.62871,2755.8,2755.7,35.005]
[1739559584139,3.62858,2755.9,2755.7,35.005]
[1739559585100,3.62845,2756.0,2755.7,35.005]
[1739559585101,3.62871,2755.8,2755.7,35.005]
[1739559585296,3.62863,2755.9,2755.7,0.005]
[1739559585502,3.62871,2755.8,2755.7,0.005]
[1739559585707,3.62871,2755.8,2755.7,35.005]
[1739559586533,3.62871,2755.8,2755.7,36.33421681]
[1739559586735,0.74287724,2756.1,2755.7,36.33421681]
[1739559586922,3.62871,2755.8,2755.7,35.005]
[1739559587798,3.62869,2755.9,2755.7,35.005]
[1739559588333,3.62871,2755.8,2755.7,35.005]
[1739559588714,3.62871,2755.8,2755.7,0.005]
[1739559589305,3.72871,2755.8,2755.7,35.005]
[1739559592539,0.1,2755.8,2755.7,35.64965859]
[1739559592844,0.1,2755.8,2755.7,36.46275859]
[1739559593277,3.72871,2755.8,2755.7,35.005]
[1739559593414,0.1,2755.8,2755.7,35.005]
[1739559593815,0.1,2755.8,2755.7,35.8102]
[1739559599433,0.1,2755.8,2755.7,38.8102]
[1739559599727,0.1,2755.8,2755.7,42.43904]
[1739559599938,0.1,2755.8,2755.7,46.06380439]
[1739559600520,0.1,2755.8,2755.7,42.43496439]
[1739559600720,0.1,2755.8,2755.7,46.06380439]
[1739559600922,0.1,2755.8,2755.7,49.11097747]
[1739559601156,3.62745,2756.8,2756.3,0.8052]
[1739559601354,3.62775,2756.6,2756.4,0.03627746]
[1739559601528,6.5512,2757.1,2755.9,0.8052]
[1739559601529,3.62818,2756.2,2755.9,0.8052]
[1739559601735,0.8042,2756.5,2755.9,4.42996439]
[1739559601945,0.8042,2756.8,2755.9,0.8052]
[1739559602121,0.70815466,2756.9,2756.3,0.8052]
[1739559602320,5.747,2757.1,2756.6,0.8052]
[1739559602532,9.37407,2757.1,2756.6,0.8052]
[1739559602737,9.37402,2757.1,2756.6,0.8052]
[1739559602939,5.747,2757.1,2756.7,0.443288]
[1739559603254,3.62673,2757.3,2756.8,0.8052]
[1739559603557,3.62714,2757.0,2756.8,0.8052]
[1739559603859,3.6269,2757.2,2756.8,0.8052]
[1739559604055,3.6269,2757.2,2756.8,4.42996439]
[1739559604356,3.62641,2757.6,2757.0,3.62712]
[1739559604556,3.62633,2757.7,2757.0,3.62712]
[1739559604856,0.72462506,2757.4,2757.1,4.43214]
[1739559605030,0.8042,2758.0,2757.1,0.8052]
[1739559605354,3.62605,2757.9,2757.4,0.8052]
[1739559605530,3.62574,2758.1,2757.5,3.62647]
[1739559605730,3.62574,2758.1,2757.6,3.62626]
[1739559605932,3.62552,2758.3,2757.8,0.8052]
[1739559606148,0.72571341,2757.9,2757.8,0.8052]
[1739559608323,3.62607,2757.8,2757.7,35.0]
[1739559608536,3.62607,2757.8,2757.2,0.7783]
[1739559608742,3.6263,2757.7,2757.2,0.7783]
[1739559608944,3.6263,2757.7,2757.2,1.218834]
[1739559609258,4.35166341,2757.9,2757.2,1.218834]
[1739559609259,0.72571341,2757.9,2757.6,0.7783]
[1739559609820,0.72571341,2757.9,2757.2,0.440534]
[1739559609821,3.62623,2757.7,2757.2,1.218834]
[1739559610021,3.62607,2757.8,2757.6,35.0]
[1739559610225,3.62621,2757.7,2757.6,35.0]
[1739559610454,0.72571341,2757.9,2757.6,35.0]
[1739559610657,0.72571341,2757.9,2757.6,38.5]
[1739559610855,4.35167341,2757.9,2757.7,0.7783]
[1739559611229,0.72571341,2757.9,2757.7,0.7783]
[1739559612062,3.62571,2758.1,2757.7,0.7783]
[1739559612263,7.2515,2758.1,2757.7,0.7783]
[1739559612421,3.62548,2758.3,2757.7,4.40306439]
[1739559612624,3.62555,2758.2,2757.7,4.40306439]
[1739559612819,0.17809628,2758.4,2757.7,4.40306439]
[1739559613056,3.62577,2758.1,2757.7,4.40306439]
[1739559613356,3.62584,2758.0,2757.7,4.40306439]
[1739559613560,3.62621,2757.7,2757.6,35.0]
[1739559614336,4.17621,2757.7,2757.6,35.0]
[1739559614634,3.62607,2757.8,2756.3,4.40622]
[1739559614635,3.62716,2757.0,2756.3,4.40622]
[1739559615041,3.6275,2756.8,2756.7,35.0]
[1739559615242,3.62726,2756.9,2756.7,35.0]
[1739559615440,3.62739,2756.8,2756.7,35.0]
[1739559615647,3.62718,2757.0,2756.7,35.0]
[1739559615848,3.6268,2757.3,2756.8,0.7783]
[1739559616060,3.8075084,2757.7,2756.8,0.7783]
[1739559616259,3.62694,2757.2,2756.8,0.7783]
[1739559616430,3.62701,2757.1,2756.8,0.7783]
[1739559616861,3.62722,2757.0,2756.8,0.7783]
[1739559617580,3.62722,2757.0,2756.7,35.0]
[1739559617581,3.62739,2756.8,2756.7,35.0]
[1739559617929,4.17739,2756.8,2756.7,35.0]
[1739559618129,4.93409,2756.8,2756.7,35.0]
[1739559619260,3.62868,2755.9,2755.7,0.005]
[1739559619466,3.62871,2755.8,2755.7,0.005]
[1739559619963,3.62871,2755.8,2755.7,35.005]
[1739559620129,3.62867,2755.9,2755.7,35.005]
[1739559620328,7.25734,2755.9,2755.7,35.005]
[1739559620561,3.62871,2755.8,2755.7,35.005]
[1739559620731,0.7567,2756.2,2755.7,35.005]
[1739559620932,3.62799,2756.4,2755.8,3.66355992]
[1739559621134,3.62799,2756.4,2755.9,3.62857]
[1739559621460,3.62834,2756.1,2755.8,0.7783]
[1739559621762,0.55,2756.7,2755.7,0.005]
[1739559621967,3.62871,2755.8,2755.7,0.005]
[1739559625466,3.62847,2756.0,2755.7,0.005]
[1739559625669,3.62811,2756.3,2755.7,0.7985]
[1739559625844,3.62847,2756.0,2755.7,0.7985]
[1739559626044,3.62833,2756.1,2755.7,1.241251]
[1739559626237,7.25672,2756.1,2755.7,1.241251]
[1739559626435,3.62846,2756.0,2755.7,1.241251]
[1739559626630,3.62833,2756.1,2755.7,1.241251]
[1739559626876,0.8133,2756.5,2755.7,1.241251]
[1739559627089,0.8133,2756.8,2756.0,3.62837]
[1739559627292,4.44033,2757.1,2756.5,3.62771]
[1739559627501,3.62681,2757.3,2756.7,3.62743]
[1739559627638,3.62687,2757.2,2756.7,3.62743]
[1739559627839,3.62682,2757.3,2756.8,0.442093]
[1739559628086,3.62655,2757.5,2756.8,0.442093]
[1739559628381,3.62675,2757.3,2756.8,0.442093]
[1739559628785,3.62681,2757.3,2756.8,0.442093]
[1739559629191,3.62681,2757.3,2756.8,4.069443]
[1739559629488,3.62681,2757.3,2756.9,0.4069443]
[1739559630060,3.62663,2757.4,2756.9,0.4069443]
[1739559630262,7.25318,2757.5,2756.9,4.0341843]
[1739559630627,3.62661,2757.4,2756.9,4.0341843]
[1739559630916,3.62677,2757.3,2756.9,0.4069443]
[1739559631121,7.25317,2757.5,2756.9,0.4069443]
[1739559631264,3.62658,2757.5,2757.1,0.7935]
[1739559631964,3.62661,2757.4,2757.1,0.7935]
[1739559632163,0.8133,2757.8,2757.1,0.7935]
[1739559632396,3.62686,2757.2,2757.1,0.7935]
[1739559632996,3.62725,2757.0,2756.6,3.0]
[1739559633205,0.55,2757.2,2756.5,0.7935]
[1739559633503,7.25523,2756.7,2756.5,0.7935]
[1739559633987,3.62761,2756.7,2756.5,0.7935]
[1739559634194,3.6276,2756.7,2756.5,0.7935]
[1739559634506,3.62741,2756.8,2756.5,0.7935]
[1739559634758,3.62682,2757.3,2756.5,1.235652]
[1739559634904,0.72478431,2757.4,2756.9,3.62719]
[1739559635063,0.72478431,2757.4,2757.2,3.62684]
[1739559635270,0.72478431,2757.4,2757.3,0.7935]
[1739559635516,3.62627,2757.7,2757.3,35.7935]
[1739559635669,7.2526,2757.7,2757.4,3.57935]
[1739559635867,0.55,2758.0,2757.3,35.0]
[1739559636171,3.6266,2757.4,2757.3,35.0]
[1739559638798,4.1766,2757.4,2757.3,35.0]
[1739559639405,4.9614,2757.4,2757.3,35.0]
[1739559641429,4.4114,2757.4,2757.3,35.0]
[1739559641799,4.9614,2757.4,2757.3,35.0]
[1739559642431,3.6266,2757.4,2757.3,35.0]
[1739559644610,3.62648,2757.5,2757.3,35.0]
[1739559644805,3.6266,2757.4,2757.3,35.0]
[1739559645615,3.6266,2757.4,2757.0,0.792]
[1739559645812,3.62678,2757.3,2757.0,0.792]
[1739559646022,3.62678,2757.3,2757.2,35.0]